[Event "Torneo Benidorm Gran Hotel Bali 2022"]
[Site "Benidorm, Spain"]
[Date "2022.12.09"]
[Round "8.4"]
[White "Remolar Gallen, Jose"]
[Black "Centeno Mendoza, Julio Stefano"]
[Result "1/2-1/2"]
[ECO "D31"]
[WhiteElo "2305"]
[BlackElo "2099"]
[PlyCount "97"]
[EventDate "2022.12.03"]
[EventType "swiss"]
[EventRounds "9"]
[SourceTitle "Ajedrez en Madrid"]
[Source "lmi"]
[SourceDate "2022.12.03"]
[SourceVersion "1"]
[SourceVersionDate "2022.12.10"]
[SourceQuality "1"]
[TimeControl "90+30"]
[WhiteClock "0:02:16"]
[BlackClock "0:03:01"]

1. d4 {[%emt 0:00:00]} d5 {[%emt 0:00:00]} 2. c4 {[%emt 0:00:00]} e6 {[%emt 0:00:00]} 3. Nc3 {[%emt 0:00:00]} Be7 {[%emt 0:00:00]} 4. cxd5 {[%emt 0:00:00]} exd5 {[%emt 0:00:00]} 5. Bf4 {[%emt 0:00:00]} c6 {[%emt 0:00:00]} 6. e3 {[%emt 0:00:00]} Bf5 {[%emt 0:00:00]} 7. Bd3 {[%emt 0:00:00]} Bxd3 {[%emt 0:00:00]} 8. Qxd3 {[%emt 0:00:00]} Nf6 {[%emt 0:00:00]} 9. Nge2 {[%emt 0:00:00]} Nbd7 {[%emt 0:00:00]} 10. Ng3 {[%emt 0:00:00]} g6 {[%emt 0:00:00]} 11. O-O {[%emt 0:00:00]} O-O {[%emt 0:00:00]} 12. Rab1 {[%emt 0:00:00]} a5 {[%emt 0:00:00]} 13. h3 {[%emt 0:00:00]} Ne8 {[%emt 0:00:00]} 14. Nge2 {[%emt 0:00:00]} Ng7 {[%emt 0:00:00]} 15. Rfc1 {[%emt 0:00:00]} Nb6 {[%emt 0:00:00]} 16. b3 {[%emt 0:00:00]} Re8 {[%emt 0:00:00]} 17. Na4 {[%emt 0:00:00]} Nd7 {[%emt 0:00:00]} 18. Rc2 {[%emt 0:00:00]} Ne6 {[%emt 0:00:00]} 19. Bg3 {[%emt 0:00:00]} Bb4 {[%emt 0:00:00]} 20. Rd1 {[%emt 0:00:00]} Qe7 {[%emt 0:00:00]} 21. Nc1 {[%emt 0:00:00]} Ng5 {[%emt 0:00:00]} 22. Bh2 {[%emt 0:00:00]} f5 {[%emt 0:00:00]} 23. Qf1 {[%emt 0:00:00]} Ne4 {[%emt 0:00:00]} 24. Nd3 {[%emt 0:00:00]} Ba3 {[%emt 0:00:00]} 25. Kh1 {[%emt 0:00:00]} Ng5 {[%emt 0:00:00]} 26. Re1 {[%emt 0:00:00]} Ne6 {[%emt 0:00:00]} 27. Rb1 {[%emt 0:00:00]} Qf8 {[%emt 0:06:01]} 28. Nc3 {[%emt 0:00:00]} Be7 {[%emt 0:00:49]} 29. Ne2 {[%emt 0:00:00]} Bb4 {[%emt 0:04:07]} 30. Ng1 {[%emt 0:00:00]} Ng5 {[%emt 0:00:42]} 31. Nf3 {[%emt 0:00:00]} Nxf3 {[%emt 0:01:01]} 32. gxf3 {[%emt 0:00:00]} Be7 {[%emt 0:00:22]} 33. Qg2 {[%emt 0:00:40]} Qf6 {[%emt 0:01:15]} 34. Qg3 {[%emt 0:01:37]} Qh4 {[%emt 0:01:20]} 35. Qc7 {[%emt 0:03:41]} Nf6 {[%emt 0:00:40]} 36. Kg2 {[%emt 0:00:24]} Ne4 {[%emt 0:00:56]} 37. Rh1 {[%emt 0:05:04]} Ng5 {[%emt 0:01:51]} 38. Bg3 {[%emt 0:00:26]} Qh5 {[%emt 0:00:05]} 39. Ne1 {[%emt 0:00:10]} Bb4 {[%emt 0:00:49]} 40. h4 {[%emt 0:00:02]} Ne6 {[%emt 0:00:20]} 41. Qxb7 {[%emt 0:01:39]} f4 {[%emt 0:00:19]} 42. Bxf4 {[%emt 0:04:44]} Nxf4+ {[%emt 0:00:06]} 43. exf4 {[%emt 0:00:02]} Rab8 {[%emt 0:00:06]} 44. Qc7 {[%emt 0:01:48]} Rbc8 {[%emt 0:00:08]} 45. Qd7 {[%emt 0:00:09]} Rcd8 {[%emt 0:00:13]} 46. Qc7 {[%emt 0:00:15]} Rc8 {[%emt 0:00:04]} 47. Qb7 {[%emt 0:00:28]} Rb8 {[%emt 0:01:11]} 48. Qc7 {[%emt 0:02:23]} Rbc8 {[%emt 0:00:04]} 49. Qb7 {[%emt 0:00:12]} 1/2-1/2

[Event "Torneo Benidorm Gran Hotel Bali 2022"]
[Site "Benidorm, Spain"]
[Date "2022.12.09"]
[Round "8.5"]
[White "Aguilera Lopez, Alejandro"]
[Black "Shaik, Sumer Arsh"]
[Result "1/2-1/2"]
[ECO "A06"]
[WhiteElo "2184"]
[BlackElo "2290"]
[PlyCount "59"]
[EventDate "2022.12.03"]
[EventType "swiss"]
[EventRounds "9"]
[SourceTitle "Ajedrez en Madrid"]
[Source "lmi"]
[SourceDate "2022.12.03"]
[SourceVersion "1"]
[SourceVersionDate "2022.12.10"]
[SourceQuality "1"]
[TimeControl "90+30"]
[WhiteClock "0:50:05"]
[BlackClock "0:01:30"]

1. Nf3 {[%emt 0:00:00]} d5 {[%emt 0:00:00]} 2. b3 {[%emt 0:00:00]} Bg4 {[%emt 0:00:00]} 3. Bb2 {[%emt 0:00:00]} Bxf3 {[%emt 0:00:00]} 4. exf3 {[%emt 0:00:00]} e6 {[%emt 0:00:00]} 5. f4 {[%emt 0:00:00]} Nf6 {[%emt 0:00:00]} 6. g3 {[%emt 0:00:00]} g6 {[%emt 0:00:00]} 7. Bg2 {[%emt 0:00:00]} Bg7 {[%emt 0:00:00]} 8. O-O {[%emt 0:00:00]} O-O {[%emt 0:00:00]} 9. Qe2 {[%emt 0:00:00]} Nc6 {[%emt 0:00:00]} 10. c4 {[%emt 0:00:00]} Ne7 {[%emt 0:00:00]} 11. d3 {[%emt 0:00:00]} c6 {[%emt 0:00:00]} 12. Nd2 {[%emt 0:00:00]} Nd7 {[%emt 0:00:00]} 13. Nf3 {[%emt 0:00:00]} Nf5 {[%emt 0:00:00]} 14. Ne5 {[%emt 0:00:00]} Nxe5 {[%emt 0:00:00]} 15. fxe5 {[%emt 0:00:00]} Qb6 {[%emt 0:00:00]} 16. Rad1 {[%emt 0:00:00]} Rfd8 {[%emt 0:00:00]} 17. g4 {[%emt 0:00:00]} Nd4 {[%emt 0:00:00]} 18. Qe3 {[%emt 0:00:00]} dxc4 {[%emt 0:00:00]} 19. dxc4 {[%emt 0:00:00]} c5 {[%emt 0:00:00]} 20. Qe4 {[%emt 0:00:00]} Nc6 {[%emt 0:02:07]} 21. f4 {[%emt 0:00:00]} Qa5 {[%emt 0:01:43]} 22. Qb1 {[%emt 0:00:00]} Bh6 {[%emt 0:03:29]} 23. g5 {[%emt 0:00:00]} Bf8 {[%emt 0:02:34]} 24. Bxc6 {[%emt 0:00:00]} bxc6 {[%emt 0:00:01]} 25. Qc2 {[%emt 0:00:00]} Be7 {[%emt 0:02:22]} 26. Bc3 {[%emt 0:00:00]} Qb6 {[%emt 0:00:26]} 27. Rxd8+ {[%emt 0:00:00]} Rxd8 {[%emt 0:00:01]} 28. Rd1 {[%emt 0:00:00]} Rxd1+ {[%emt 0:01:46]} 29. Qxd1 {[%emt 0:00:00]} Qd8 {[%emt 0:00:01]} 30. Qxd8+ {[%emt 0:02:42]} 1/2-1/2

[Event "Torneo Benidorm Gran Hotel Bali 2022"]
[Site "Benidorm, Spain"]
[Date "2022.12.09"]
[Round "8.6"]
[White "Luque Saiz, Andres"]
[Black "Salgado Lopez, Oscar"]
[Result "1-0"]
[ECO "B48"]
[WhiteElo "2286"]
[BlackElo "2070"]
[PlyCount "77"]
[EventDate "2022.12.03"]
[EventType "swiss"]
[EventRounds "9"]
[SourceTitle "Ajedrez en Madrid"]
[Source "lmi"]
[SourceDate "2022.12.03"]
[SourceVersion "1"]
[SourceVersionDate "2022.12.10"]
[SourceQuality "1"]
[TimeControl "90+30"]
[WhiteClock "0:14:28"]
[BlackClock "0:00:57"]

1. e4 {[%emt 0:00:00]} c5 {[%emt 0:00:00]} 2. Nf3 {[%emt 0:00:00]} e6 {[%emt 0:00:00]} 3. d4 {[%emt 0:00:00]} cxd4 {[%emt 0:00:00]} 4. Nxd4 {[%emt 0:00:00]} Nc6 {[%emt 0:00:00]} 5. Nc3 {[%emt 0:00:00]} Qc7 {[%emt 0:00:00]} 6. Be3 {[%emt 0:00:00]} a6 {[%emt 0:00:00]} 7. Qf3 {[%emt 0:00:00]} Ne5 {[%emt 0:00:00]} 8. Qg3 {[%emt 0:00:00]} h5 {[%emt 0:00:00]} 9. f4 {[%emt 0:00:00]} h4 {[%emt 0:00:00]} 10. Qh3 {[%emt 0:00:00]} Nc4 {[%emt 0:00:00]} 11. Bc1 {[%emt 0:00:00]} b5 {[%emt 0:00:00]} 12. Qd3 {[%emt 0:00:00]} Bb7 {[%emt 0:00:00]} 13. a4 {[%emt 0:00:00]} b4 {[%emt 0:00:00]} 14. Ncb5 {[%emt 0:00:00]} axb5 {[%emt 0:00:00]} 15. Nxb5 {[%emt 0:00:00]} Qa5 {[%emt 0:00:00]} 16. Qxc4 {[%emt 0:00:00]} Rc8 {[%emt 0:00:00]} 17. Qd4 {[%emt 0:00:00]} Nf6 {[%emt 0:00:00]} 18. Bd3 {[%emt 0:00:00]} d5 {[%emt 0:00:00]} 19. e5 {[%emt 0:00:00]} Bc5 {[%emt 0:00:00]} 20. Nd6+ {[%emt 0:00:00]} Bxd6 {[%emt 0:00:00]} 21. exd6 {[%emt 0:00:00]} h3 {[%emt 0:00:00]} 22. Bd2 {[%emt 0:00:00]} hxg2 {[%emt 0:00:00]} 23. Rg1 {[%emt 0:00:00]} Rxh2 {[%emt 0:00:00]} 24. Bxb4 {[%emt 0:00:00]} Qa8 {[%emt 0:00:00]} 25. b3 {[%emt 0:00:00]} Kd7 {[%emt 0:00:49]} 26. Qb6 {[%emt 0:00:00]} Bc6 {[%emt 0:00:33]} 27. Ba6 {[%emt 0:00:00]} Rhh8 {[%emt 0:06:37]} 28. Bxc8+ {[%emt 0:00:00]} Rxc8 {[%emt 0:00:02]} 29. Qd4 {[%emt 0:00:00]} Qb7 {[%emt 0:04:36]} 30. Rxg2 {[%emt 0:00:00]} Ne8 {[%emt 0:00:11]} 31. Bc5 {[%emt 0:00:00]} g6 {[%emt 0:00:28]} 32. b4 {[%emt 0:00:51]} Qb8 {[%emt 0:01:35]} 33. Rh2 {[%emt 0:03:41]} Nxd6 {[%emt 0:02:00]} 34. Rh7 {[%emt 0:00:06]} e5 {[%emt 0:00:38]} 35. fxe5 {[%emt 0:00:46]} Nf5 {[%emt 0:00:20]} 36. Rxf7+ {[%emt 0:00:43]} Ke8 {[%emt 0:00:50]} 37. Rf8+ {[%emt 0:00:07]} Kd7 {[%emt 0:00:14]} 38. e6+ {[%emt 0:00:07]} Kc7 {[%emt 0:00:40]} 39. Rf7+ {[%emt 0:00:11]} 1-0

[Event "Torneo Benidorm Gran Hotel Bali 2022"]
[Site "Benidorm, Spain"]
[Date "2022.12.09"]
[Round "8.7"]
[White "Kovacevic, Slobodan"]
[Black "Rodriguez Redondo, Adhara"]
[Result "1-0"]
[ECO "D02"]
[WhiteElo "2224"]
[BlackElo "2057"]
[PlyCount "91"]
[EventDate "2022.12.03"]
[EventType "swiss"]
[EventRounds "9"]
[SourceTitle "Ajedrez en Madrid"]
[Source "lmi"]
[SourceDate "2022.12.03"]
[SourceVersion "1"]
[SourceVersionDate "2022.12.10"]
[SourceQuality "1"]
[TimeControl "90+30"]
[WhiteClock "0:14:47"]
[BlackClock "0:00:33"]

1. d4 {[%emt 0:00:00]} d5 {[%emt 0:00:00]} 2. Bf4 {[%emt 0:00:00]} Nf6 {[%emt 0:00:00]} 3. e3 {[%emt 0:00:00]} e6 {[%emt 0:00:00]} 4. Nd2 {[%emt 0:00:56]} Bd6 5. Bg3 {[%emt 0:00:00]} O-O {[%emt 0:00:00]} 6. Ngf3 {[%emt 0:00:00]} c5 {[%emt 0:00:00]} 7. c3 {[%emt 0:00:00]} c4 {[%emt 0:00:00]} 8. Qc2 {[%emt 0:00:00]} Qc7 {[%emt 0:00:00]} 9. e4 {[%emt 0:00:00]} dxe4 {[%emt 0:00:00]} 10. Nxe4 {[%emt 0:00:00]} Nxe4 {[%emt 0:00:00]} 11. Qxe4 {[%emt 0:00:00]} f5 {[%emt 0:00:00]} 12. Bxd6 {[%emt 0:00:00]} Qxd6 {[%emt 0:00:00]} 13. Qe2 {[%emt 0:00:00]} b5 {[%emt 0:00:00]} 14. a4 {[%emt 0:00:00]} b4 {[%emt 0:00:00]} 15. Qxc4 {[%emt 0:00:00]} bxc3 {[%emt 0:00:00]} 16. bxc3 {[%emt 0:00:00]} Bb7 {[%emt 0:00:00]} 17. Be2 {[%emt 0:00:00]} a5 {[%emt 0:00:00]} 18. O-O {[%emt 0:00:00]} Nd7 {[%emt 0:00:00]} 19. Qa2 {[%emt 0:00:00]} Nf6 {[%emt 0:00:00]} 20. Ng5 {[%emt 0:00:00]} Nd5 {[%emt 0:00:00]} 21. Qa3 {[%emt 0:00:00]} Qxa3 {[%emt 0:00:00]} 22. Rxa3 {[%emt 0:00:00]} Rac8 {[%emt 0:00:00]} 23. Bf3 {[%emt 0:00:00]} Rf6 {[%emt 0:01:38]} 24. Re1 {[%emt 0:00:00]} h6 {[%emt 0:02:43]} 25. Nxe6 {[%emt 0:00:00]} Re8 {[%emt 0:01:01]} 26. c4 {[%emt 0:00:00]} Rfxe6 {[%emt 0:01:53]} 27. Rxe6 {[%emt 0:00:00]} Rxe6 {[%emt 0:00:03]} 28. h3 {[%emt 0:00:00]} Rb6 {[%emt 0:04:33]} 29. cxd5 {[%emt 0:00:00]} Rb4 {[%emt 0:00:27]} 30. Rc3 {[%emt 0:00:00]} Rxd4 {[%emt 0:00:55]} 31. Rc5 {[%emt 0:00:00]} g5 {[%emt 0:02:32]} 32. Rb5 {[%emt 0:02:16]} g4 {[%emt 0:00:56]} 33. hxg4 {[%emt 0:01:10]} fxg4 {[%emt 0:00:02]} 34. Be2 {[%emt 0:00:31]} Rb4 {[%emt 0:01:13]} 35. Rxa5 {[%emt 0:00:15]} Kf8 {[%emt 0:00:31]} 36. Rb5 {[%emt 0:00:54]} Rxb5 {[%emt 0:00:12]} 37. axb5 {[%emt 0:00:18]} h5 {[%emt 0:01:33]} 38. Kh2 {[%emt 0:00:31]} Bxd5 {[%emt 0:00:00]} 39. Kg3 {[%emt 0:00:34]} Ke7 {[%emt 0:00:13]} 40. f3 {[%emt 0:00:41]} gxf3 {[%emt 0:00:32]} 41. Bxf3 {[%emt 0:00:08]} Bc4 {[%emt 0:00:17]} 42. b6 {[%emt 0:00:17]} Kd6 {[%emt 0:00:08]} 43. Kh4 {[%emt 0:00:39]} Bf7 {[%emt 0:01:05]} 44. Bxh5 {[%emt 0:00:16]} Bd5 {[%emt 0:00:15]} 45. Bf3 {[%emt 0:00:04]} Be6 {[%emt 0:00:45]} 46. Kg5 {[%emt 0:00:13]} 1-0

[Event "Torneo Benidorm Gran Hotel Bali 2022"]
[Site "Benidorm, Spain"]
[Date "2022.12.09"]
[Round "8.8"]
[White "Hristodorescu, Daniel"]
[Black "Pallardo Lozoya, Jose Vicente"]
[Result "0-1"]
[ECO "C11"]
[WhiteElo "2108"]
[BlackElo "2367"]
[PlyCount "108"]
[EventDate "2022.12.03"]
[EventType "swiss"]
[EventRounds "9"]
[SourceTitle "Ajedrez en Madrid"]
[Source "lmi"]
[SourceDate "2022.12.03"]
[SourceVersion "1"]
[SourceVersionDate "2022.12.10"]
[SourceQuality "1"]
[TimeControl "90+30"]
[WhiteClock "0:05:01"]
[BlackClock "0:01:00"]

1. e4 {[%emt 0:00:00]} e6 {[%emt 0:00:00]} 2. d4 {[%emt 0:00:00]} d5 {[%emt 0:00:00]} 3. Nc3 {[%emt 0:00:00]} Nf6 {[%emt 0:00:00]} 4. e5 {[%emt 0:00:00]} Nfd7 {[%emt 0:00:00]} 5. f4 {[%emt 0:00:00]} c5 {[%emt 0:00:00]} 6. Nf3 {[%emt 0:00:00]} Nc6 {[%emt 0:00:00]} 7. Be3 {[%emt 0:00:00]} Be7 {[%emt 0:00:00]} 8. Be2 {[%emt 0:00:00]} O-O {[%emt 0:00:00]} 9. O-O {[%emt 0:00:00]} f6 {[%emt 0:00:00]} 10. exf6 {[%emt 0:00:00]} Nxf6 {[%emt 0:00:00]} 11. Kh1 {[%emt 0:00:00]} Ng4 {[%emt 0:00:00]} 12. Bg1 {[%emt 0:00:00]} Rxf4 {[%emt 0:00:00]} 13. Qd2 {[%emt 0:00:00]} Rf8 {[%emt 0:00:00]} 14. dxc5 {[%emt 0:00:00]} Bd7 {[%emt 0:00:00]} 15. a3 {[%emt 0:00:00]} a5 {[%emt 0:00:00]} 16. Rad1 {[%emt 0:00:00]} Nf6 {[%emt 0:00:00]} 17. Bd3 {[%emt 0:00:00]} Be8 {[%emt 0:00:00]} 18. Rde1 {[%emt 0:00:00]} Bf7 {[%emt 0:00:00]} 19. Nd4 {[%emt 0:00:00]} Nxd4 {[%emt 0:00:00]} 20. Bxd4 {[%emt 0:00:00]} Nd7 {[%emt 0:00:00]} 21. b4 {[%emt 0:00:00]} axb4 {[%emt 0:00:00]} 22. axb4 {[%emt 0:00:00]} Bg5 {[%emt 0:00:00]} 23. Qd1 {[%emt 0:00:00]} e5 {[%emt 0:00:00]} 24. Bg1 {[%emt 0:00:00]} e4 {[%emt 0:00:00]} 25. Be2 {[%emt 0:00:00]} Nf6 {[%emt 0:00:00]} 26. Nb5 {[%emt 0:00:00]} Qe7 {[%emt 0:01:01]} 27. Nd6 {[%emt 0:00:00]} Be6 {[%emt 0:00:08]} 28. Qd4 {[%emt 0:00:00]} Ra2 {[%emt 0:02:30]} 29. Qe5 {[%emt 0:00:00]} Nd7 {[%emt 0:01:19]} 30. Rxf8+ {[%emt 0:00:00]} Nxf8 {[%emt 0:00:11]} 31. Nf5 {[%emt 0:00:00]} Qf6 {[%emt 0:01:35]} 32. Qxf6 {[%emt 0:00:00]} Bxf6 {[%emt 0:00:04]} 33. Nd4 {[%emt 0:00:00]} Bxd4 {[%emt 0:02:11]} 34. Bxd4 {[%emt 0:00:00]} Rxc2 {[%emt 0:00:01]} 35. h3 {[%emt 0:00:00]} Bd7 {[%emt 0:01:18]} 36. Bf1 {[%emt 0:00:50]} Ne6 {[%emt 0:00:49]} 37. Be5 {[%emt 0:00:06]} Rd2 {[%emt 0:02:53]} 38. Bc3 {[%emt 0:02:40]} Rc2 {[%emt 0:01:59]} 39. Be5 {[%emt 0:00:07]} Bc6 {[%emt 0:01:22]} 40. b5 {[%emt 0:02:52]} Nxc5 {[%emt 0:00:26]} 41. bxc6 {[%emt 0:00:48]} bxc6 {[%emt 0:00:02]} 42. Ra1 {[%emt 0:01:24]} Kf7 {[%emt 0:00:39]} 43. Ra7+ {[%emt 0:00:54]} Ke6 {[%emt 0:00:15]} 44. Bxg7 {[%emt 0:02:52]} Rc1 {[%emt 0:00:38]} 45. Ra1 {[%emt 0:00:34]} Rxa1 {[%emt 0:00:38]} 46. Bxa1 {[%emt 0:00:08]} Nb3 {[%emt 0:01:04]} 47. Bc3 {[%emt 0:01:02]} c5 {[%emt 0:02:19]} 48. Kg1 {[%emt 0:00:08]} e3 {[%emt 0:01:13]} 49. Bd3 {[%emt 0:02:10]} Nd2 {[%emt 0:00:35]} 50. Bxh7 {[%emt 0:00:54]} d4 {[%emt 0:00:05]} 51. Ba5 {[%emt 0:00:55]} c4 {[%emt 0:00:54]} 52. g4 {[%emt 0:02:06]} d3 {[%emt 0:00:18]} 53. Bb6 {[%emt 0:02:22]} Nf3+ {[%emt 0:00:33]} 54. Kg2 {[%emt 0:00:37]} d2 {[%emt 0:00:30] Kg1 Ke5+} 0-1

[Event "Torneo Benidorm Gran Hotel Bali 2022"]
[Site "Benidorm, Spain"]
[Date "2022.12.09"]
[Round "8.9"]
[White "Sos Andreu, Eric"]
[Black "Galvan Cipriani, Viviana"]
[Result "1-0"]
[ECO "E11"]
[WhiteElo "2364"]
[BlackElo "2088"]
[PlyCount "101"]
[EventDate "2022.12.03"]
[EventType "swiss"]
[EventRounds "9"]
[SourceTitle "Ajedrez en Madrid"]
[Source "lmi"]
[SourceDate "2022.12.03"]
[SourceVersion "1"]
[SourceVersionDate "2022.12.10"]
[SourceQuality "1"]
[TimeControl "90+30"]
[WhiteClock "0:01:38"]
[BlackClock "0:00:32"]

1. d4 {[%emt 0:00:00]} Nf6 {[%emt 0:00:00]} 2. c4 {[%emt 0:00:00]} e6 {[%emt 0:00:00]} 3. Nf3 {[%emt 0:00:00]} d5 {[%emt 0:00:00]} 4. g3 {[%emt 0:00:00]} Bb4+ {[%emt 0:00:00]} 5. Bd2 {[%emt 0:00:00]} Be7 {[%emt 0:00:00]} 6. Bg2 {[%emt 0:00:00]} O-O {[%emt 0:00:00]} 7. O-O {[%emt 0:00:00]} c6 {[%emt 0:00:00]} 8. Qc2 {[%emt 0:00:00]} Ne4 {[%emt 0:00:00]} 9. Bc1 {[%emt 0:00:00]} Nd7 {[%emt 0:00:00]} 10. Nc3 {[%emt 0:00:00]} f5 {[%emt 0:00:00]} 11. Rb1 {[%emt 0:00:00]} Nd6 {[%emt 0:00:00]} 12. c5 {[%emt 0:00:00]} Ne4 {[%emt 0:00:00]} 13. b4 {[%emt 0:00:00]} Bf6 {[%emt 0:00:00]} 14. Bb2 {[%emt 0:00:00]} g5 {[%emt 0:00:00]} 15. Nxe4 {[%emt 0:00:00]} fxe4 {[%emt 0:00:00]} 16. Ne5 {[%emt 0:00:00]} Qc7 {[%emt 0:00:00]} 17. Nxd7 {[%emt 0:00:00]} Bxd7 {[%emt 0:00:00]} 18. f3 {[%emt 0:00:00]} exf3 {[%emt 0:00:00]} 19. Rxf3 {[%emt 0:00:00]} Be8 {[%emt 0:00:00]} 20. Rbf1 {[%emt 0:00:00]} Bg6 {[%emt 0:00:00]} 21. Qd2 {[%emt 0:00:00]} Qg7 {[%emt 0:00:00]} 22. R3f2 {[%emt 0:00:00]} Rae8 {[%emt 0:00:00]} 23. a4 {[%emt 0:00:00]} Bf5 {[%emt 0:00:00]} 24. e3 {[%emt 0:00:00]} Qg6 {[%emt 0:00:00]} 25. b5 {[%emt 0:00:00]} Kg7 {[%emt 0:00:00]} 26. Qa5 {[%emt 0:00:00]} Bd3 {[%emt 0:00:00]} 27. Rd1 {[%emt 0:00:00]} Rf7 {[%emt 0:00:00]} 28. Qxa7 {[%emt 0:00:00]} cxb5 {[%emt 0:04:07]} 29. axb5 {[%emt 0:00:00]} Bxb5 {[%emt 0:00:00]} 30. Bc3 {[%emt 0:00:00]} g4 {[%emt 0:00:00]} 31. Rb2 {[%emt 0:00:00]} Bc6 {[%emt 0:00:00]} 32. Qa3 {[%emt 0:00:00]} Qh6 {[%emt 0:01:12]} 33. Re1 {[%emt 0:00:00]} e5 {[%emt 0:01:25]} 34. dxe5 {[%emt 0:00:00]} Bxe5 {[%emt 0:00:08]} 35. Bxe5+ {[%emt 0:00:00]} Rxe5 {[%emt 0:00:04]} 36. Qc3 {[%emt 0:02:51]} Qf6 {[%emt 0:02:34]} 37. Qd4 {[%emt 0:00:50]} Qg5 {[%emt 0:00:56]} 38. Rf2 {[%emt 0:02:08]} Rxf2 39. Kxf2 {[%emt 0:00:29]} Kf7 {[%emt 0:01:58]} 40. Kg1 {[%emt 0:01:24]} Kg6 {[%emt 0:01:52]} 41. Bf1 {[%emt 0:01:08]} Kg7 {[%emt 0:04:58]} 42. Bd3 {[%emt 0:00:40]} Kg8 {[%emt 0:00:10]} 43. Re2 {[%emt 0:04:51]} Re7 {[%emt 0:01:17]} 44. Rf2 {[%emt 0:03:47]} Qg7 {[%emt 0:01:45]} 45. Qf4 {[%emt 0:01:11]} h5 {[%emt 0:00:35]} 46. Bg6 {[%emt 0:01:16]} Be8 {[%emt 0:00:42]} 47. Bd3 {[%emt 0:01:25]} Rf7 {[%emt 0:00:43]} 48. Qd4 {[%emt 0:01:16]} Rxf2 {[%emt 0:00:22]} 49. Kxf2 {[%emt 0:00:21]} Qf7+ {[%emt 0:00:26]} 50. Ke1 {[%emt 0:00:41]} Qf3 {[%emt 0:00:44]} 51. Kd2 {[%emt 0:01:04]} 1-0

[Event "Torneo Benidorm Gran Hotel Bali 2022"]
[Site "Benidorm, Spain"]
[Date "2022.12.10"]
[Round "9.1"]
[White "Aditya, Varun Gampa"]
[Black "Davtyan, David Arm."]
[Result "1/2-1/2"]
[ECO "C01"]
[WhiteElo "2249"]
[BlackElo "2329"]
[PlyCount "43"]
[EventDate "2022.12.03"]
[EventType "swiss"]
[EventRounds "9"]
[SourceTitle "Ajedrez en Madrid"]
[Source "lmi"]
[SourceDate "2022.12.03"]
[SourceVersion "1"]
[SourceVersionDate "2022.12.10"]
[SourceQuality "1"]
[TimeControl "90+30"]
[WhiteClock "0:46:08"]
[BlackClock "1:08:51"]

1. e4 {[%emt 0:00:00]} e6 {[%emt 0:00:00]} 2. d4 {[%emt 0:00:00]} d5 {[%emt 0:00:00]} 3. Bd3 {[%emt 0:00:00]} dxe4 {[%emt 0:00:00]} 4. Bxe4 {[%emt 0:00:00]} Nf6 {[%emt 0:00:00]} 5. Bf3 {[%emt 0:00:00]} c5 {[%emt 0:00:00]} 6. Ne2 {[%emt 0:00:00]} Nc6 {[%emt 0:00:00]} 7. Be3 {[%emt 0:00:00]} cxd4 {[%emt 0:00:00]} 8. Nxd4 {[%emt 0:00:00]} Ne5 {[%emt 0:00:00]} 9. Nc3 {[%emt 0:00:00]} a6 {[%emt 0:00:00]} 10. Qe2 {[%emt 0:00:00]} Nxf3+ {[%emt 0:00:00]} 11. gxf3 {[%emt 0:00:00]} Nd5 {[%emt 0:00:00]} 12. Nxd5 {[%emt 0:00:00]} Qxd5 {[%emt 0:00:00]} 13. O-O-O {[%emt 0:00:00]} Bd7 {[%emt 0:00:00]} 14. Kb1 {[%emt 0:00:00]} Be7 {[%emt 0:00:00]} 15. Nb3 {[%emt 0:00:00]} Bb5 {[%emt 0:00:00]} 16. Qe1 {[%emt 0:00:00]} Qxf3 {[%emt 0:00:00]} 17. Rg1 {[%emt 0:00:00]} g6 {[%emt 0:00:00]} 18. Bd4 {[%emt 0:00:00]} Bf6 {[%emt 0:00:00]} 19. Bc5 {[%emt 0:00:00]} Qf5 {[%emt 0:00:00]} 20. Qb4 {[%emt 0:00:00]} Rc8 {[%emt 0:00:00]} 21. a4 {[%emt 0:00:00]} b6 {[%emt 0:00:00]} 22. axb5 {[%emt 0:00:00]} 1/2-1/2

[Event "Torneo Benidorm Gran Hotel Bali 2022"]
[Site "Benidorm, Spain"]
[Date "2022.12.10"]
[Round "9.2"]
[White "Korneev, Oleg"]
[Black "Kovacevic, Slobodan"]
[Result "1-0"]
[ECO "B22"]
[WhiteElo "2481"]
[BlackElo "2224"]
[PlyCount "89"]
[EventDate "2022.12.03"]
[EventType "swiss"]
[EventRounds "9"]
[SourceTitle "Ajedrez en Madrid"]
[Source "lmi"]
[SourceDate "2022.12.03"]
[SourceVersion "1"]
[SourceVersionDate "2022.12.10"]
[SourceQuality "1"]
[TimeControl "90+30"]
[WhiteClock "0:09:51"]
[BlackClock "0:09:59"]

1. e4 {[%emt 0:00:00]} c5 {[%emt 0:00:00]} 2. Nf3 {[%emt 0:00:00]} e6 {[%emt 0:00:00]} 3. c3 {[%emt 0:00:00]} Nc6 {[%emt 0:00:00]} 4. d4 {[%emt 0:00:00]} d5 {[%emt 0:00:00]} 5. exd5 {[%emt 0:00:00]} exd5 {[%emt 0:00:00]} 6. Bd3 {[%emt 0:00:00]} Bd6 {[%emt 0:00:00]} 7. dxc5 {[%emt 0:00:00]} Bxc5 {[%emt 0:00:00]} 8. O-O {[%emt 0:00:00]} Nge7 {[%emt 0:00:00]} 9. Nbd2 {[%emt 0:00:00]} O-O {[%emt 0:00:00]} 10. Nb3 {[%emt 0:00:00]} Bb6 {[%emt 0:00:00]} 11. Re1 {[%emt 0:00:00]} Nf5 {[%emt 0:00:00]} 12. Qc2 {[%emt 0:00:00]} g6 {[%emt 0:00:00]} 13. Bf4 {[%emt 0:00:00]} Be6 {[%emt 0:00:00]} 14. Rad1 {[%emt 0:00:00]} Nh4 {[%emt 0:00:00]} 15. Nxh4 {[%emt 0:00:00]} Qxh4 {[%emt 0:00:00]} 16. Qd2 {[%emt 0:00:00]} Rfe8 {[%emt 0:00:00]} 17. h3 {[%emt 0:00:00]} Rac8 {[%emt 0:00:00]} 18. Re2 {[%emt 0:00:00]} Bd7 {[%emt 0:00:00]} 19. Rxe8+ {[%emt 0:00:00]} Rxe8 {[%emt 0:00:00]} 20. Bf1 {[%emt 0:00:00]} Be6 {[%emt 0:00:00]} 21. Re1 {[%emt 0:00:00]} Qd8 {[%emt 0:00:00]} 22. Be3 {[%emt 0:00:00]} d4 {[%emt 0:00:49]} 23. Nxd4 {[%emt 0:00:00]} Nxd4 {[%emt 0:00:44]} 24. Bxd4 {[%emt 0:00:00]} Bxd4 {[%emt 0:00:40]} 25. cxd4 {[%emt 0:00:00]} Bxa2 {[%emt 0:00:37]} 26. Rxe8+ {[%emt 0:00:00]} Qxe8 {[%emt 0:00:02]} 27. Qa5 {[%emt 0:00:00]} Qe6 {[%emt 0:00:30]} 28. Qxa7 {[%emt 0:00:00]} Bc4 {[%emt 0:02:01]} 29. Qxb7 {[%emt 0:00:00]} Bxf1 {[%emt 0:00:07]} 30. Qb8+ {[%emt 0:00:00]} Kg7 {[%emt 0:00:02]} 31. Kxf1 {[%emt 0:00:00]} Qc4+ {[%emt 0:00:11]} 32. Kg1 {[%emt 0:00:00]} Qxd4 {[%emt 0:00:18]} 33. Qb3 {[%emt 0:00:00]} f6 {[%emt 0:00:19]} 34. Qb7+ {[%emt 0:00:00]} Kh6 {[%emt 0:00:23]} 35. Qb3 {[%emt 0:00:00]} Kg7 {[%emt 0:00:17]} 36. g3 {[%emt 0:00:03]} g5 {[%emt 0:00:19]} 37. Qb7+ {[%emt 0:00:58]} Kg6 {[%emt 0:00:32]} 38. b4 {[%emt 0:00:06]} h5 {[%emt 0:02:21]} 39. b5 {[%emt 0:00:39]} Kf5 {[%emt 0:01:59]} 40. b6 {[%emt 0:00:32]} Ke6 {[%emt 0:00:34]} 41. Qc6+ {[%emt 0:04:02]} Qd6 {[%emt 0:00:28]} 42. Qxd6+ {[%emt 0:07:02]} Kxd6 {[%emt 0:00:01]} 43. Kg2 {[%emt 0:00:23]} Kc6 {[%emt 0:00:08]} 44. Kf3 {[%emt 0:00:04]} f5 {[%emt 0:00:09]} 45. h4 {[%emt 0:00:20]} 1-0